bitfinex-derivatives/quotes_BNBF0:USTF0_20250116
["timestamp","ask_amount","ask_price","bid_price","bid_amount"]
[1737036332054,0.28184495,709.61,707.68,0.25929475]
[1737036332253,0.28184495,709.61,707.69,0.25929475]
[1737036332553,0.28184495,709.61,707.7,0.25929475]
[1737036332752,0.28184495,709.61,707.71,0.25929475]
[1737036332948,0.28184495,709.61,707.72,0.25929475]
[1737036333156,0.28184495,709.61,707.59,0.25929475]
[1737036333360,0.28184495,709.61,707.6,0.25932554]
[1737036333552,0.28184495,709.61,707.59,0.60413992]
[1737036333853,0.28184495,709.61,707.61,0.25932554]
[1737036334057,0.28184495,709.61,707.58,0.60413992]
[1737036334058,0.28184495,709.61,707.62,0.25932554]
[1737036334454,0.28184495,709.61,707.63,0.25932554]
[1737036334652,0.28184495,709.61,707.64,0.25932554]
[1737036334851,0.28184495,709.61,707.65,0.25932554]
[1737036335056,0.28184495,709.61,707.66,0.25932554]
[1737036335252,0.28184495,709.61,707.67,0.25932554]
[1737036335462,0.28184495,709.61,707.68,0.25932554]
[1737036335662,0.28184495,709.61,707.69,0.25932554]
[1737036335955,0.28184495,709.61,707.7,0.25932554]
[1737036336158,0.28184495,709.61,707.72,1.05444702]
[1737036336362,0.28184495,709.61,707.73,0.86336546]
[1737036336553,0.28184495,709.61,707.74,0.25929273]
[1737036336758,0.28184495,709.61,707.72,1.05444702]
[1737036336958,0.28184495,709.61,707.74,0.60407316]
[1737036337155,0.28184495,709.61,707.75,0.86336615]
[1737036337359,0.28184495,709.61,707.76,0.86336615]
[1737036337554,0.28184495,709.61,707.77,0.60407316]
[1737036337763,0.28184495,709.61,707.78,0.86336615]
[1737036337959,0.28184495,709.61,707.66,0.86336615]
[1737036338158,0.28184495,709.61,707.67,0.86336615]
[1737036338360,0.28184495,709.61,707.68,0.86336615]
[1737036338558,0.28184495,709.61,707.69,0.25929299]
[1737036338766,0.28184495,709.61,707.7,0.25929299]
[1737036338967,0.28184495,709.61,707.71,0.25929299]
[1737036339164,0.28184495,709.61,707.72,0.2593093]
[1737036339367,0.28184495,709.61,707.68,0.86341552]
[1737036339565,0.28184495,709.61,707.69,0.86341552]
[1737036339761,0.28184495,709.61,707.7,0.2593093]
[1737036339967,0.28184495,709.61,707.71,0.2593093]
[1737036340168,0.28184495,709.61,707.73,0.28259364]
[1737036340364,0.28184495,709.61,707.74,0.2593093]
[1737036340762,0.28184495,709.61,707.75,0.2593093]
[1737036341070,0.28184495,709.61,707.76,0.2593093]
[1737036341365,0.28184495,709.61,707.77,0.2593093]
[1737036341569,0.28184495,709.61,707.78,0.2593093]
[1737036341763,0.28184495,709.61,707.79,0.2593093]
[1737036341968,0.28184495,709.61,707.81,0.2825617]
[1737036342268,0.28184495,709.61,707.82,0.86346434]
[1737036342461,0.28184495,709.61,707.83,0.25932524]
[1737036342763,0.28184495,709.61,707.85,0.28254573]
[1737036342971,0.28184495,709.61,707.86,0.86346434]
[1737036343170,0.28184495,709.61,707.87,0.54186299]
[1737036343368,0.28184495,709.61,707.88,0.86346434]
[1737036343666,0.28184495,709.61,707.89,0.25932524]
[1737036343869,0.28184495,709.61,707.9,0.25932524]
[1737036344065,0.28184495,709.61,707.91,0.25932524]
[1737036344264,0.28184495,709.61,707.92,0.25932524]
[1737036344465,0.28184495,709.61,707.93,0.25932524]
[1737036344671,0.28184495,709.61,707.87,0.28253775]
[1737036344869,0.28184495,709.61,707.94,0.25932488]
[1737036345070,0.28184495,709.61,707.88,0.86346327]
[1737036345272,0.28184495,709.61,707.89,0.25932488]
[1737036345569,0.28184495,709.61,707.9,0.25932451]
[1737036345873,0.28184495,709.61,707.91,0.25932451]
[1737036346172,0.28184495,709.61,707.92,0.25932451]
[1737036346376,0.28184495,709.61,707.93,0.25932451]
[1737036346672,0.28184495,709.61,707.94,0.25932451]
[1737036346868,0.28184495,709.61,707.95,0.25932451]
[1737036347073,0.28184495,709.61,707.96,0.25932451]
[1737036347372,0.28184495,709.61,707.97,0.25932451]
[1737036347673,0.28184495,709.61,707.98,0.25932451]
[1737036347871,0.28184495,709.61,707.99,0.25932451]
[1737036348073,0.28184495,709.61,707.9,0.86346649]
[1737036348275,0.28184495,709.61,707.91,0.25932451]
[1737036348473,0.28184495,709.61,707.92,0.25932451]
[1737036348674,0.28184495,709.61,707.93,0.25932451]
[1737036348866,0.28184495,709.61,707.94,0.25932451]
[1737036349070,0.28184495,709.61,707.95,0.25932451]
[1737036349271,1.04754485,709.58,707.96,0.25932451]
[1737036349468,1.04754485,709.58,707.97,0.25932451]
[1737036349672,1.04754485,709.58,707.98,0.25932451]
[1737036349872,1.04754485,709.58,707.88,0.25932451]
[1737036350072,1.04754485,709.58,707.89,0.25932451]
[1737036350272,1.04754485,709.58,707.87,0.28253775]
[1737036350273,1.04754485,709.58,707.9,0.25932451]
[1737036350574,1.04754485,709.58,707.91,0.25940142]
[1737036350776,1.04754485,709.49,707.88,0.25940142]
[1737036350975,1.04754485,709.49,707.87,0.28253775]
[1737036351171,1.04754485,709.49,707.88,0.25939626]
[1737036351876,1.04754485,709.45,707.88,0.25939626]
[1737036352970,0.28184495,709.61,707.88,0.25939626]
[1737036352971,1.04754485,709.33,707.88,0.25939626]
[1737036353375,1.04754485,709.33,707.87,0.28253775]
[1737036353672,1.04754485,709.33,707.89,0.2593655]
[1737036353875,1.04754485,709.33,707.9,0.2593655]
[1737036354077,1.04754485,709.33,707.91,0.2593655]
[1737036354377,1.04754485,709.36,707.92,1.31381252]
[1737036354575,1.04754485,709.36,707.93,0.60422197]
[1737036354776,1.04754485,709.36,707.93,0.86358747]
[1737036354976,1.04754485,709.36,707.94,0.2593655]
[1737036355177,1.04754485,709.36,707.95,0.2593655]
[1737036355376,1.04754485,709.36,707.96,0.2593655]
[1737036355679,1.04754485,709.34,708.14,1.05444702]
[1737036355876,1.04754485,709.34,708.15,0.2593655]
[1737036356777,1.04754485,709.33,708.19,1.05444702]
[1737036356972,1.04754485,709.33,708.2,0.2593655]
[1737036357476,1.04754485,709.33,708.21,0.25932869]
[1737036357677,1.04754485,709.33,708.22,0.25932869]
[1737036357879,1.77260261,709.6,708.23,0.25932869]
[1737036357880,1.04754485,709.29,708.23,0.25932869]
[1737036358179,1.04754485,709.29,708.24,0.25932869]
[1737036358379,1.04754485,709.29,708.25,0.25932869]
[1737036358677,1.04754485,709.29,708.19,1.05444702]
[1737036358878,1.04754485,709.27,708.2,0.25935895]
[1737036359079,1.04754485,709.27,708.09,1.05444702]
[1737036359279,1.04754485,709.27,708.1,0.2593628]
[1737036359477,1.04754485,709.27,708.09,1.05444702]
[1737036359673,1.04754485,709.27,708.11,0.25937051]
[1737036359874,1.04754485,709.27,708.12,0.25938228]
[1737036360075,1.04754485,709.27,708.13,0.25938228]
[1737036360280,1.04754485,709.27,708.14,0.25938228]
[1737036360581,1.04754485,709.27,708.15,0.25938228]
[1737036360777,1.04754485,709.27,708.04,1.05444702]
[1737036360778,1.04754485,709.27,708.16,0.25935443]
[1737036360978,1.04754485,709.27,708.17,0.25935443]
[1737036361178,1.04754485,709.25,708.18,0.25935443]
[1737036361478,1.04754485,709.25,708.19,0.25935443]
[1737036361678,1.04754485,709.25,708.02,0.25935443]
[1737036362073,1.04754485,709.26,708.09,1.05444702]
[1737036362279,1.04754485,709.26,708.1,0.25935443]
[1737036363483,1.04754485,709.26,708.11,0.25936837]
[1737036363683,1.04754485,709.26,708.08,0.25936797]
[1737036363981,1.04754485,709.26,707.87,1.33698477]
[1737036363982,1.04754485,709.26,708.09,0.25937164]
[1737036364184,1.04754485,709.26,708.1,0.25936292]
[1737036364386,1.04754485,709.26,708.11,0.25936292]
[1737036364682,1.04754485,709.26,708.1,1.001]
[1737036364885,1.04754485,709.26,708.11,0.25936326]
[1737036365083,1.04754485,709.21,708.11,0.25936326]
[1737036367478,1.04754485,709.21,708.1,2.05544702]
[1737036367680,0.72505776,709.6,708.1,2.05544702]
[1737036367681,1.04754485,709.22,708.12,1.05444702]
[1737036367883,1.04754485,709.22,708.13,0.25934674]
[1737036368985,0.72505776,709.6,708.17,1.05444702]
[1737036368986,1.04754485,709.26,708.17,1.05444702]
[1737036369185,1.04754485,709.26,708.18,0.25934674]
[1737036370180,0.72505776,709.6,708.18,0.25934674]
[1737036370181,1.04754485,709.32,708.18,0.25934674]
[1737036370485,1.04754485,709.32,708.19,0.25933734]
[1737036370786,1.04754485,709.32,708.2,0.25933734]
[1737036370988,1.04754485,709.32,708.1,1.001]
[1737036370989,1.04754485,709.29,708.15,1.05444702]
[1737036371189,1.04754485,709.29,708.16,0.2593352]
[1737036372483,1.04754485,709.27,708.14,1.05444702]
[1737036372691,1.04754485,709.27,708.15,0.25934523]
[1737036373191,1.04754485,709.27,708.14,1.05444702]
[1737036373490,1.04754485,709.31,708.1,1.001]
[1737036373688,1.04754485,709.31,708.11,0.25934352]
[1737036374888,1.04754485,709.31,708.1,1.001]
[1737036376090,1.47333808,709.36,708.1,1.001]
[1737036376091,1.04754485,709.21,708.1,1.001]
[1737036376990,1.04754485,709.22,708.1,1.001]
[1737036377592,0.28200391,709.21,708.1,1.001]
[1737036380795,1.04754485,709.15,708.1,1.001]
[1737036381193,0.28203175,709.14,708.1,1.001]
[1737036383397,1.04754485,709.06,708.1,1.001]
[1737036384890,1.04754485,709.07,708.1,1.001]
[1737036385595,0.28206357,709.06,708.1,1.001]
[1737036392304,1.04754485,708.98,708.1,1.001]
[1737036393604,1.04754485,709.02,708.1,1.001]
[1737036394199,0.28208346,709.01,708.1,1.001]
[1737036394798,1.04754485,709.0,708.1,1.001]
[1737036395002,0.28209142,708.99,708.1,1.001]
[1737036400800,1.75588188,708.99,708.1,1.001]
[1737036401501,0.28209142,708.99,708.1,1.001]
[1737036405207,1.04754485,708.9,708.1,1.001]
[1737036405902,0.28213121,708.89,708.1,1.001]
[1737036413609,1.47407658,708.88,708.1,1.001]
[1737036414615,0.28213917,708.87,708.1,1.001]
[1737036419821,1.04754485,708.86,708.1,1.001]
[1737036420920,0.28214713,708.85,708.1,1.001]
[1737036422018,1.32969198,708.85,708.1,1.001]
[1737036423423,1.04754485,708.7,708.1,1.001]
[1737036424218,1.04754485,708.69,708.1,1.001]
[1737036426230,1.04754485,708.68,708.1,1.001]
[1737036427329,1.04754485,708.76,708.1,1.001]
[1737036428328,1.75625493,708.85,708.1,1.001]
[1737036428627,0.28215112,708.84,708.1,1.001]
[1737036429932,1.04754485,708.83,708.1,1.001]
[1737036430929,0.28215112,708.84,708.1,1.001]
[1737036430930,1.04754485,708.59,708.1,1.001]
[1737036432032,1.04754485,708.58,708.1,1.001]
[1737036433534,1.04754485,708.57,708.1,1.001]
[1737036434533,1.04754485,708.58,708.1,1.001]
[1737036435232,1.04754485,708.81,708.1,1.001]
[1737036435233,0.28215112,708.84,708.1,1.001]
[1737036435530,1.47442529,708.68,708.1,1.001]
[1737036435735,0.28215112,708.84,708.1,1.001]
[1737036436331,1.04559955,708.56,708.1,1.001]
[1737036437135,1.04559955,708.55,708.1,1.001]
[1737036438333,1.04559955,708.52,708.1,1.001]
[1737036439333,1.04559955,708.5,708.1,1.001]
[1737036440637,1.04559955,708.44,708.1,1.001]
[1737036441830,1.04559955,708.45,708.1,1.001]
[1737036442930,1.04559955,708.43,708.1,1.001]
[1737036445231,1.04559955,708.44,708.1,1.001]
[1737036446436,1.04559955,708.46,708.1,1.001]
[1737036447635,1.04559955,708.58,708.1,1.001]
[1737036448640,1.47453462,708.65,708.1,1.001]
[1737036448641,1.04559955,708.45,708.1,1.001]
[1737036449838,0.28231042,708.44,708.1,1.001]
[1737036450940,1.32790997,708.44,708.1,1.001]
[1737036452038,1.04559955,708.36,708.1,1.001]
[1737036452838,1.04559955,708.3,708.1,1.001]
[1737036453047,1.04559955,708.3,706.96,1.05577585]
[1737036453340,1.04559955,708.3,706.97,0.25973821]
[1737036453542,1.04559955,708.32,706.97,0.25973821]
[1737036453744,1.04559955,708.32,706.95,0.25973821]
[1737036453942,1.04559955,708.32,706.98,0.25973821]
[1737036454139,1.04559955,708.32,706.99,0.25973821]
[1737036454340,1.04559955,708.35,707.0,0.25973821]
[1737036454541,1.04559955,708.35,707.01,0.25973821]
[1737036454542,0.28235028,708.34,707.01,0.25973821]
[1737036454737,0.28235028,708.34,707.02,0.25973821]
[1737036454938,0.28235028,708.34,707.03,0.25973821]
[1737036455134,0.28235028,708.34,707.04,0.25973821]
[1737036455341,0.28235028,708.34,707.05,0.25973821]
[1737036455642,0.28235028,708.34,707.06,0.25973821]
[1737036455939,0.28235028,708.34,707.07,0.25973821]
[1737036456145,0.28235028,708.34,707.08,0.25973821]
[1737036456345,0.28235028,708.34,707.09,0.25973821]
[1737036456542,0.28235028,708.34,706.86,1.05577585]
[1737036456543,0.28235028,708.34,707.1,0.25974367]
[1737036456745,0.28235028,708.34,707.11,0.25974367]
[1737036456943,0.28235028,708.34,707.12,0.25974367]
[1737036459349,0.28235028,708.34,707.13,0.25974408]
[1737036459544,0.28235028,708.34,707.11,0.843]
[1737036459750,0.28235028,708.34,707.12,0.25974433]
[1737036460550,0.28235028,708.34,707.11,0.843]
[1737036461953,1.32794983,708.34,707.11,0.843]
[1737036462945,1.04559955,708.32,707.11,0.843]
[1737036463950,1.04559955,708.33,707.11,0.843]
[1737036464952,0.28235028,708.34,707.11,0.843]
[1737036468259,0.28235028,708.34,707.12,0.2597525]
[1737036468556,0.28235028,708.34,706.79,1.05577585]
[1737036468757,0.28235028,708.34,706.8,0.54272309]
[1737036468963,1.04559955,708.33,706.84,1.05577585]
[1737036469258,0.28235825,708.32,706.85,0.25975762]
[1737036469657,0.28235825,708.32,706.85,1.28875762]
[1737036469957,0.28235825,708.32,706.86,0.25975762]
[1737036470158,0.28235825,708.32,706.87,1.05577585]
[1737036470358,0.28235825,708.32,706.88,0.25975762]
[1737036470759,0.28235825,708.32,706.87,1.05577585]
[1737036470959,0.28235825,708.32,706.88,0.25975359]
[1737036471560,1.3279578,708.32,706.89,1.05577585]
[1737036471860,1.3279578,708.32,706.9,0.25975359]
[1737036472454,1.3279578,708.32,706.9,1.31552944]
[1737036472761,1.3279578,708.32,706.91,0.25975359]
[1737036473661,0.28235825,708.32,706.92,1.05577585]
[1737036473860,0.28235825,708.32,706.93,0.25975359]
[1737036474257,0.28235825,708.32,706.92,1.05577585]
[1737036474456,0.28235825,708.32,706.96,1.05577585]
[1737036474457,1.04559955,708.3,706.96,1.05577585]
[1737036474659,1.04559955,708.3,706.97,0.25973419]
[1737036475762,0.28235825,708.32,706.97,0.25973419]
[1737036475763,1.04559955,708.31,707.0,1.05577585]
[1737036476055,1.04559955,708.31,707.01,0.25973419]
[1737036476460,1.04559955,708.31,707.0,1.05577585]
[1737036476760,1.04559955,708.31,707.01,0.25973785]
[1737036476954,0.28235825,708.32,707.01,0.25973785]
[1737036476955,1.04559955,708.27,707.01,0.25973785]
[1737036477155,1.04559955,708.27,707.02,0.25973785]
[1737036477359,1.04559955,708.27,707.03,0.25973785]
[1737036477654,1.04559955,708.27,707.04,0.25973785]
[1737036477959,1.04559955,708.27,707.05,0.25973785]
[1737036478160,1.04559955,708.27,707.06,0.25973785]
[1737036478362,0.28235825,708.32,707.07,0.25973785]
[1737036478363,1.04559955,708.23,707.07,0.25973785]
[1737036478662,1.04559955,708.23,707.08,0.25973785]
[1737036478956,1.04559955,708.23,707.09,0.25973785]
[1737036479160,1.04559955,708.23,707.1,0.25973785]
[1737036479355,1.04559955,708.23,707.1,0.25973839]
[1737036479560,1.04559955,708.23,706.85,1.029]
[1737036479561,1.04559955,708.21,707.11,0.25973839]
[1737036479760,1.04559955,708.21,707.12,0.25973839]
[1737036479961,1.04559955,708.21,707.13,0.25973839]
[1737036480157,1.04559955,708.21,707.14,0.25973839]
[1737036480363,1.04559955,708.21,707.15,0.25973839]
[1737036480562,1.04559955,708.21,707.16,0.25973839]
[1737036480756,1.04559955,708.21,707.06,0.25973839]
[1737036481063,0.28235825,708.32,707.05,1.05577585]
[1737036481064,1.04559955,708.18,707.07,0.25973839]
[1737036481363,1.04559955,708.18,707.05,1.05577585]
[1737036481764,1.04559955,708.18,707.06,0.25978629]
[1737036482664,0.28235825,708.32,707.05,1.113]
[1737036482665,1.04559955,708.2,707.05,1.113]
[1737036483764,1.04559955,708.0,707.05,1.113]
[1737036484865,1.04559955,708.02,707.05,1.113]
[1737036485962,0.28235825,708.32,707.05,1.113]
[1737036485963,1.04559955,707.99,707.05,1.113]
[1737036486667,1.04559955,707.97,707.05,1.113]
[1737036487763,1.04559955,707.99,707.05,1.113]
[1737036488765,1.04559955,708.02,707.05,1.113]
[1737036489161,0.28248188,708.01,707.05,1.113]
[1737036495472,1.04559955,707.96,707.05,1.113]
[1737036495867,0.28248188,708.01,707.05,1.113]
[1737036496672,1.04297913,707.97,707.05,1.113]
[1737036497771,1.04297913,707.99,707.05,1.113]
[1737036498579,0.28248188,708.01,707.05,1.113]
[1737036512786,1.04394275,707.99,707.05,1.113]
[1737036513189,1.04394275,707.99,707.06,0.25978575]
[1737036513583,1.04394275,707.99,706.81,0.28296147]
[1737036513584,1.04394275,707.99,706.82,0.25978575]
[1737036513784,1.04394275,707.99,706.83,0.25978575]
[1737036513990,1.04394275,707.99,706.84,0.25978575]
[1737036514187,0.28248188,708.01,706.88,1.05488279]
[1737036514390,0.28248188,708.01,706.89,0.25978575]
[1737036514594,0.28248188,708.01,706.89,1.35378575]
[1737036514792,0.28248188,708.01,706.89,1.094]
[1737036515092,0.28248188,708.01,706.9,0.25979155]
[1737036515488,0.28248188,708.01,706.92,1.05488279]
[1737036515794,0.28248188,708.01,706.93,0.25979155]
[1737036516593,1.04394275,707.96,706.93,0.25979155]
[1737036516792,1.04394275,707.96,706.94,0.25979155]
[1737036516992,1.04394275,707.96,706.89,1.094]
[1737036517192,1.04394275,707.96,706.9,0.25984419]
[1737036517393,1.04394275,707.96,706.89,1.094]
[1737036517695,1.04394275,707.88,706.89,1.094]
[1737036518693,1.04394275,707.83,706.89,1.094]
[1737036520094,0.28248188,708.01,706.89,1.094]
[1737036520095,1.04394275,707.84,706.89,1.094]
[1737036521197,1.04394275,707.88,706.89,1.094]
[1737036522300,1.04394275,707.89,706.89,1.094]
[1737036523399,1.04394275,707.93,706.89,1.094]
[1737036523993,0.28248188,708.01,706.89,1.094]
[1737036527000,0.28248188,708.01,706.9,0.25983059]
[1737036527601,1.04394275,707.96,706.9,0.25983059]
[1737036529006,1.04394275,707.96,706.91,0.25983159]
[1737036529305,1.04394275,707.96,706.89,1.094]
[1737036529605,1.04394275,707.96,706.9,0.25983047]
[1737036529904,1.04394275,707.96,706.9,0.25982457]
[1737036530803,1.04394275,707.99,706.91,0.25982618]
[1737036531004,1.04394275,707.99,706.92,0.25982618]
[1737036531205,1.04394275,707.99,706.93,0.25982618]
[1737036531409,1.04394275,707.99,706.94,0.25982618]
[1737036531607,1.04394275,707.99,706.95,0.25979809]
[1737036531806,1.04394275,707.99,706.89,1.094]
[1737036531807,1.04394275,707.95,706.96,0.25979809]
[1737036532105,1.04394275,707.95,706.89,1.094]
[1737036532308,1.04394275,707.95,706.9,0.25976806]
[1737036533006,0.28248188,708.01,706.99,1.05488279]
[1737036533203,0.28248188,708.01,707.0,0.25976806]
[1737036533803,0.28248188,708.01,707.06,1.05488279]
[1737036534100,0.28248188,708.01,707.07,0.25976806]
[1737036534900,0.28248188,708.01,707.12,1.05488279]
[1737036535105,0.28248188,708.01,707.13,0.25976806]
[1737036536006,0.28248188,708.01,707.14,0.25976806]
[1737036536202,0.28248188,708.01,707.12,0.25976806]
[1737036536399,1.04394275,708.42,707.13,0.25976806]
[1737036536602,1.04394275,708.42,707.14,0.25976806]
[1737036536803,1.04394275,708.57,707.15,0.25976806]
[1737036536999,0.28226261,708.56,707.16,0.25976806]
[1737036537303,0.28226261,708.56,707.17,0.25976806]
[1737036537505,0.28226261,708.56,707.18,0.25976806]
[1737036537700,0.28226261,708.56,707.19,0.25976806]
[1737036537899,0.28226261,708.56,707.2,0.25976806]
[1737036538100,0.28226261,708.56,706.99,1.05488279]
[1737036538101,0.28226261,708.56,707.21,0.25976806]
[1737036538403,0.28226261,708.56,706.99,1.05488279]
[1737036538803,0.28226261,708.56,707.0,0.25966979]
[1737036539004,0.28226261,708.56,706.96,0.25966979]
[1737036539306,0.28226261,708.56,706.95,1.05488279]
[1737036539508,0.28226261,708.56,706.96,0.25966669]
[1737036540308,0.28226261,708.56,706.97,0.25966669]
[1737036540608,0.28226261,708.56,706.98,0.25966669]
[1737036540809,0.28226261,708.56,706.99,0.25966669]
[1737036541006,0.28226261,708.56,706.9,0.25966669]
[1737036541202,0.28226261,708.56,706.89,1.094]
[1737036541403,0.28226261,708.56,706.9,0.25974969]
[1737036542105,1.47527953,708.55,706.9,0.25974969]
[1737036542710,1.04394275,708.42,706.9,0.25974969]
[1737036543815,1.04394275,708.44,706.9,0.25974969]
[1737036544009,1.04394275,708.44,706.91,0.25976474]
[1737036544210,1.04394275,708.44,706.92,0.25976474]
[1737036544405,1.04394275,708.44,706.93,0.25976474]
[1737036544605,1.04394275,708.44,706.94,0.25976474]
[1737036544811,1.04394275,708.44,706.95,0.25976474]
[1737036545114,1.04394275,708.44,706.96,0.25976474]
[1737036545416,1.04394275,708.44,706.97,0.25977778]
[1737036545712,1.04394275,708.44,706.98,0.25977778]
[1737036545914,1.04394275,708.44,706.99,0.25977778]
[1737036546115,1.47527953,708.55,706.97,0.878]
[1737036546116,1.04394275,708.43,706.97,0.878]
[1737036546415,1.04394275,708.43,706.98,0.25976033]
[1737036546810,1.04394275,708.43,706.99,0.25976202]
[1737036547014,1.04394275,708.43,706.98,0.25976202]
[1737036547315,1.04394275,708.48,706.99,0.25976202]
[1737036547509,1.04394275,708.48,707.0,0.2597497]
[1737036547706,1.04394275,708.48,707.01,0.2597497]
[1737036547910,1.04394275,708.48,707.02,0.2597497]
[1737036548107,0.28226261,708.56,706.97,0.878]
[1737036548108,1.04394275,708.54,706.97,0.878]
[1737036548813,1.04394275,708.54,706.98,0.25967354]
[1737036549211,0.28226261,708.56,706.98,0.25967354]
[1737036549907,0.28226261,708.56,706.99,0.25966203]
[1737036550107,0.28226261,708.56,707.0,0.25966203]
[1737036550313,0.28226261,708.56,707.01,0.25966203]
[1737036550613,0.28226261,708.56,707.02,0.25966203]
[1737036550806,0.28226261,708.56,707.03,0.25966203]
[1737036551007,0.28226261,708.56,707.04,0.25966203]
[1737036551313,0.28226261,708.56,707.05,0.25966203]
[1737036551515,0.28226261,708.56,706.98,0.25966203]
[1737036551715,0.28226261,708.56,706.99,0.25966203]
[1737036552014,0.28226261,708.56,707.0,0.25966203]
[1737036552218,0.28226261,708.56,707.01,0.25966203]
[1737036552411,0.28226261,708.56,706.98,0.25966203]
[1737036552608,0.28226261,708.56,706.99,0.25966203]
[1737036552808,0.28226261,708.56,706.98,0.25966203]
[1737036556013,0.28226261,708.56,706.97,0.878]
[1737036556213,0.28226261,708.56,706.99,0.25966379]
[1737036556411,0.28226261,708.56,707.0,0.25966379]
[1737036556612,0.28226261,708.56,706.98,0.25966379]
[1737036556810,0.28226261,708.56,706.99,0.2596802]
[1737036557017,0.28226261,708.56,707.0,0.2596802]
[1737036557213,0.28226261,708.56,707.01,0.2596802]
[1737036557413,0.28226261,708.56,707.02,0.2596802]
[1737036557614,0.28226261,708.56,707.03,0.2596802]
[1737036557814,0.28226261,708.56,707.04,0.2596802]
[1737036558011,0.28226261,708.56,707.05,0.2596802]
[1737036558311,0.28226261,708.56,707.06,0.2596802]
[1737036558517,0.28226261,708.56,707.07,0.2596802]
[1737036558717,0.28226261,708.56,706.98,0.2596802]
[1737036558913,0.28226261,708.56,706.99,0.25970925]
[1737036559114,1.04394275,708.54,706.98,0.86461034]
[1737036559312,1.04394275,708.54,707.0,0.25970925]
[1737036559512,1.04394275,708.54,706.99,0.25970925]
[1737036559721,1.04394275,708.54,706.98,0.60490109]
[1737036559722,0.28226261,708.56,707.0,0.25970925]
[1737036559918,0.28226261,708.56,706.99,0.25970925]
[1737036560219,0.28226261,708.56,707.0,0.25970925]
[1737036560418,0.28226261,708.56,707.01,0.25970925]
[1737036560718,0.28226261,708.56,707.02,0.25970925]
[1737036560913,0.28226261,708.56,707.03,0.25970925]
[1737036561111,0.28226261,708.56,707.0,0.25970925]
[1737036561315,0.28226261,708.56,707.04,0.25970925]
[1737036561516,0.28226261,708.56,707.05,0.25970925]
[1737036561712,0.28226261,708.56,706.99,1.05488279]
[1737036561920,0.28226261,708.56,707.0,0.25962003]
[1737036562113,0.28226261,708.56,707.05,1.05488279]
[1737036562317,0.28226261,708.56,707.06,0.86436094]
[1737036562619,0.28226261,708.56,707.07,0.25962003]
[1737036562919,0.28226261,708.56,707.08,0.25962003]
[1737036563118,0.28226261,708.56,707.09,0.25962003]
[1737036563420,0.28226261,708.56,707.2,1.05488279]
[1737036563613,0.28226261,708.56,707.21,0.86436094]
[1737036564018,0.28226261,708.56,707.22,0.28279743]
[1737036564315,0.28226261,708.56,707.22,1.14715837]
[1737036564621,0.28226261,708.56,707.23,0.86436094]
[1737036564818,0.28226261,708.56,707.24,0.25962003]
[1737036565019,0.28226261,708.56,707.23,0.25962003]
[1737036565319,0.28226261,708.56,707.24,0.25963213]
[1737036565520,0.28226261,708.56,707.25,0.25963213]
[1737036565716,0.28226261,708.56,707.26,0.25963213]
[1737036565917,0.28226261,708.56,707.27,0.25963213]
[1737036566121,0.28226261,708.56,707.28,0.25963213]
[1737036566322,0.28226261,708.56,707.29,0.25963213]
[1737036566518,0.28226261,708.56,707.3,0.25963213]
[1737036566723,0.28226261,708.56,707.31,0.25963213]
[1737036566944,0.28226261,708.56,707.32,0.25963213]
[1737036567129,0.28226261,708.56,707.22,0.28279743]
[1737036567130,0.28226261,708.56,707.33,0.25963213]
[1737036567420,0.28226261,708.56,707.22,0.28279743]
[1737036567622,0.28226261,708.56,707.23,0.25962123]
[1737036568718,0.28226261,708.56,707.24,1.05488279]
[1737036568922,0.28226261,708.56,707.25,0.25962123]
[1737036570428,0.28226261,708.56,707.26,0.54239195]
[1737036570621,0.28226261,708.56,707.27,0.25961052]
[1737036571416,0.28226261,708.56,707.28,0.25961246]
[1737036571619,0.28226261,708.56,707.29,0.25961246]
[1737036571820,0.28226261,708.56,707.3,0.25961246]
[1737036572023,0.28226261,708.56,707.31,0.5423739]
[1737036572323,0.28226261,708.56,707.32,0.25961246]
[1737036573490,0.28226261,708.56,707.33,0.2595973]
[1737036573725,0.28226261,708.56,707.32,0.25958522]
[1737036573924,0.28226261,708.56,707.33,0.25958099]
[1737036574419,0.28226261,708.56,707.34,0.25958099]
[1737036574624,0.28226261,708.56,707.35,0.25958099]
[1737036574821,0.28226261,708.56,707.36,0.25958099]
[1737036575020,0.28226261,708.56,707.37,0.25958099]
[1737036575224,0.28226261,708.56,707.38,0.25958099]
[1737036575421,0.28226261,708.56,707.39,0.25958099]
[1737036575618,0.28226261,708.56,707.4,0.25958099]
[1737036575825,0.28226261,708.56,707.41,0.25958099]
[1737036576124,0.28226261,708.56,707.35,0.737]
[1737036576324,0.28226261,708.56,707.36,0.2595887]
[1737036579027,0.28226261,708.56,707.37,0.25965283]
[1737036579228,0.28226261,708.56,707.38,0.25965283]
[1737036579422,0.28226261,708.56,707.39,0.25965283]
[1737036579629,0.28226261,708.56,707.4,0.25963161]
[1737036579825,0.28226261,708.56,707.41,0.25963161]